bitfinex-derivatives/quotes_SOLF0:USTF0_20260210
["timestamp","ask_amount","ask_price","bid_price","bid_amount"]
[1770760334882,3.76908838,82.44,82.367,29.9053706]
[1770760334883,3.77065696,82.43,82.38,3.77065696]
[1770760335777,3.77065696,82.43,82.397,10.9286]
[1770760336181,3.77065696,82.43,82.402,10.9279]
[1770760336377,3.77065696,82.43,82.38,3.77065696]
[1770760336586,3.77065696,82.44,82.39,3.77065696]
[1770760336791,6.72357853,82.439,82.39,3.77065696]
[1770760336994,6.72357853,82.439,82.41,10.9268]
[1770760337194,3.77065696,82.44,82.41,10.9268]
[1770760339594,3.77065696,82.45,82.41,10.9268]
[1770760339996,6.73873561,82.455,82.421,10.9254]
[1770760343101,3.77065696,82.45,82.421,10.9254]
[1770760343698,6.74366884,82.449,82.421,10.9254]
[1770760347498,6.73208836,82.439,82.409,10.927]
[1770760352901,6.71979999,82.449,82.419,10.9257]
[1770760353708,6.71543664,82.459,82.419,10.9257]
[1770760355205,3.77065696,82.45,82.419,10.9257]
[1770760356810,6.72818606,82.449,82.412,10.9266]
[1770760357014,6.72818606,82.439,82.39,100.59065696]
[1770760357202,6.72818606,82.439,82.39,3.77065696]
[1770760357408,6.72808399,82.429,82.389,10.9296]
[1770760362817,6.72808399,82.429,82.398,10.9285]
[1770760363817,6.72808399,82.429,82.387,10.9299]
[1770760364913,6.67120435,82.419,82.387,10.9299]
[1770760365111,6.67120435,82.419,82.38,10.9309]
[1770760367907,3.77065696,82.41,82.38,10.9309]
[1770760368517,3.77065696,82.41,82.386,10.9301]
[1770760368718,3.77065696,82.43,82.38,3.77065696]
[1770760368919,6.67460204,82.432,82.38,3.77065696]
[1770760369219,6.67460204,82.444,82.4,3.77065696]
[1770760369620,3.77065696,82.45,82.4,3.77065696]
[1770760369820,6.6740767,82.449,82.4,3.77065696]
[1770760370020,6.6740767,82.449,82.39,3.77065696]
[1770760370314,6.6740767,82.449,82.4,3.77065696]
[1770760370720,6.6740767,82.449,82.413,10.9265]
[1770760372418,6.6740767,82.449,82.418,10.9258]
[1770760375721,6.76738262,82.439,82.405,10.9275]
[1770760376327,3.77065696,82.43,82.405,10.9275]
[1770760379434,6.76738262,82.439,82.405,10.9275]
[1770760380739,6.76738262,82.439,82.387,96.84]
[1770760380740,6.76738262,82.439,82.398,10.9284]
[1770760380942,6.74694386,82.429,82.37,3.77065696]
[1770760381130,6.74694386,82.419,82.37,3.77065696]
[1770760381625,6.73858824,82.409,82.377,10.9313]
[1770760382436,6.73858824,82.409,82.371,10.9321]
[1770760386342,6.73858824,82.409,82.377,10.9312]
[1770760386845,6.73858824,82.409,82.37,10.9322]
[1770760390542,6.73858824,82.409,82.363,10.9331]
[1770760392344,6.73858824,82.409,82.36,3.77065696]
[1770760392542,6.72282771,82.399,82.34,3.77065696]
[1770760392739,6.72282771,82.399,82.35,3.77065696]
[1770760394844,6.72282771,82.399,82.361,10.9334]
[1770760397846,3.77361541,82.4,82.35,3.77361541]
[1770760398054,6.73723211,82.409,82.36,3.77361541]
[1770760398352,3.77361541,82.4,82.35,3.77361541]
[1770760399540,10.50042814,82.4,82.35,3.77361541]
[1770760399850,10.50042814,82.4,82.367,10.9326]
[1770760400246,10.50042814,82.4,82.35,3.77361541]
[1770760401159,6.726805,82.399,82.35,3.77361541]
[1770760401955,6.726805,82.399,82.365,10.9328]
[1770760403856,3.77361541,82.4,82.371,10.9321]
[1770760404057,6.75463853,82.41,82.371,10.9321]
[1770760404058,6.75463853,82.409,82.371,10.9321]
[1770760405765,6.75463853,82.409,82.36,3.77361541]
[1770760405766,6.75463853,82.409,82.378,10.9311]
[1770760406264,6.75463853,82.409,82.35,3.77361541]
[1770760406659,8.91122684,82.428,82.361,10.9334]
[1770760406660,6.77277593,82.389,82.361,10.9334]
[1770760417076,3.77361541,82.4,82.366,10.9327]
[1770760417779,10.9284,82.399,82.36,10.9335]
[1770760419574,10.9291,82.394,82.353,10.9345]
[1770760419774,6.74330093,82.389,82.341,96.86]
[1770760420684,6.74330093,82.386,82.345,10.9356]
[1770760421379,6.74330093,82.386,82.341,96.86]
[1770760421380,6.74330093,82.386,82.351,10.9348]
[1770760422086,6.74330093,82.386,82.345,10.9355]
[1770760422880,6.74330093,82.386,82.341,96.86]
[1770760423084,6.70123448,82.397,82.341,96.86]
[1770760423385,6.70123448,82.397,82.35,3.77361541]
[1770760423884,10.9275,82.407,82.364,10.9329]
[1770760424081,6.72651966,82.406,82.364,10.9329]
[1770760425084,3.77361541,82.4,82.364,10.9329]
[1770760425684,10.50511992,82.4,82.364,10.9329]
[1770760425881,6.73150451,82.399,82.364,10.9329]
[1770760433490,10.9281,82.402,82.364,10.9329]
[1770760433491,6.69993732,82.389,82.364,10.9329]
[1770760433794,6.69993732,82.389,82.369,10.9323]
[1770760434000,6.69993732,82.389,82.35,3.77361541]
[1770760434697,6.69993732,82.389,82.363,10.9332]
[1770760440599,6.68802568,82.402,82.374,10.9316]
[1770760440808,6.68802568,82.399,82.35,3.77494276]
[1770760441100,6.68802568,82.399,82.34,3.77494276]
[1770760441714,6.68802568,82.399,82.36,10.9335]
[1770760444500,11.1169491,82.419,82.334,119.31001492]
[1770760444501,8.91122684,82.418,82.342,21.8718]
[1770760444696,11.1169491,82.46,82.391,1.62746984]
[1770760444903,3.77494276,82.45,82.401,1.62746984]
[1770760445805,10.9218,82.449,82.403,1.63492713]
[1770760446198,14.69534276,82.46,82.412,10.9266]
[1770760446400,3.77494276,82.46,82.413,1.63492713]
[1770760447105,3.97213993,82.462,82.413,1.63492713]
[1770760447807,3.97213993,82.462,82.423,12.35216183]
[1770760448207,3.97213993,82.476,82.431,1.42696183]
[1770760448414,3.97213993,82.489,82.441,1.42696183]
[1770760449408,3.97213993,82.499,82.451,1.42696183]
[1770760450404,3.97213993,82.499,82.464,10.9198]
[1770760452207,3.97213993,82.499,82.46,3.77494276]
[1770760452208,3.97213993,82.489,82.44,1.44552968]
[1770760452606,3.97213993,82.479,82.44,1.44552968]
[1770760452809,3.77494276,82.46,82.425,1.44552968]
[1770760453000,3.97213993,82.469,82.425,1.44552968]
[1770760453203,3.97213993,82.469,82.427,1.44552968]
[1770760453408,3.77494276,82.48,82.4,96.84]
[1770760453409,3.97213993,82.483,82.431,1.44552968]
[1770760453608,3.97213993,82.483,82.441,1.62813853]
[1770760454007,3.97213993,82.479,82.441,1.62813853]
[1770760454202,3.97213993,82.492,82.441,1.62813853]
[1770760454403,3.97213993,82.499,82.441,1.62813853]
[1770760454611,3.77494276,82.48,82.441,1.62813853]
[1770760455011,3.76615975,82.48,82.441,1.62813853]
[1770760455209,3.97213993,82.489,82.441,1.62813853]
[1770760455610,3.97213993,82.479,82.434,10.9237]
[1770760455916,3.97213993,82.479,82.434,12.54544979]
[1770760456617,3.97213993,82.479,82.435,1.62174979]
[1770760459615,3.97213993,82.479,82.437,10.9233]
[1770760460811,3.87981291,82.469,82.427,10.9246]
[1770760461917,3.87981291,82.469,82.427,12.50151933]
[1770760462119,3.87981291,82.469,82.428,1.57691933]
[1770760462521,3.87981291,82.469,82.429,10.9244]
[1770760462908,3.87981291,82.469,82.429,12.49713468]
[1770760463113,3.87981291,82.469,82.429,1.57273468]
[1770760464617,3.87981291,82.469,82.429,12.49713468]
[1770760466009,3.87981291,82.469,82.429,10.9244]
[1770760466418,3.87981291,82.469,82.433,10.9239]
[1770760467220,3.87981291,82.469,82.43,1.56055363]
[1770760468016,3.87981291,82.469,82.431,10.9242]
[1770760470123,3.87981291,82.469,82.431,12.47908673]
[1770760470323,3.87981291,82.469,82.436,10.9235]
[1770760475122,3.87981291,82.469,82.441,10.9227]
[1770760476618,3.87981291,82.469,82.431,10.9241]
[1770760476818,3.76615975,82.46,82.431,10.9241]
[1770760477930,7.92474669,82.46,82.431,10.9241]
[1770760478128,8.78314043,82.509,82.419,10.9257]
[1770760478129,4.15858694,82.449,82.419,10.9257]
[1770760478927,4.15858694,82.439,82.404,10.9277]
[1770760479725,4.15858694,82.452,82.407,1.55149805]
[1770760480024,2.11130458,82.503,82.387,96.8]
[1770760480025,3.76615975,82.47,82.421,1.55149805]
[1770760480421,3.76615975,82.47,82.432,1.55149805]
[1770760481026,4.15858694,82.476,82.432,1.55149805]
[1770760481834,4.15858694,82.476,82.434,1.45578352]
[1770760486538,4.15858694,82.476,82.435,10.9236]
[1770760488230,3.76615975,82.47,82.435,10.9236]
[1770760488737,4.15858694,82.489,82.444,1.4333292]
[1770760489831,4.15858694,82.479,82.444,1.4333292]
[1770760490038,4.15858694,82.479,82.431,1.44683657]
[1770760490635,4.15858694,82.479,82.44,1.44683917]
[1770760493833,4.15858694,82.479,82.45,10.9216]
[1770760494136,4.15858694,82.479,82.43,3.76615975]
[1770760494333,7.81963238,82.47,82.441,10.9228]
[1770760494534,4.05347263,82.47,82.441,10.9228]
[1770760494941,4.05347263,82.47,82.438,1.45607058]
[1770760495742,4.05347263,82.47,82.447,10.922]
[1770760496531,7.81963238,82.48,82.447,10.922]
[1770760496735,4.05347263,82.479,82.447,10.922]
[1770760500243,11.1169491,82.501,82.43,3.76615975]
[1770760500244,8.80445097,82.487,82.448,1.44015844]
[1770760500546,4.05347263,82.499,82.461,1.44015844]
[1770760501445,4.05347263,82.489,82.454,10.921]
[1770760501650,4.05347263,82.479,82.454,10.921]
[1770760507755,4.05347263,82.479,82.43,3.76600979]
[1770760507756,4.05347263,82.479,82.443,10.9225]
[1770760508152,4.05347263,82.489,82.435,1.32919289]
[1770760508456,4.05347263,82.489,82.456,1.32919289]
[1770760508656,4.05347263,82.499,82.456,1.32919289]
[1770760509762,4.05347263,82.499,82.464,10.9198]
[1770760511764,4.05347263,82.499,82.469,10.919]
[1770760518062,4.05347263,82.499,82.463,10.9199]
[1770760518260,4.05347263,82.479,82.441,1.30838036]
[1770760518460,3.76500457,82.47,82.441,1.30838036]
[1770760519161,4.05347263,82.479,82.441,1.30838036]
[1770760519775,4.05347263,82.479,82.443,10.9225]
[1770760520667,4.05347263,82.479,82.441,1.30838036]
[1770760521467,10.9161,82.493,82.456,1.4567504]
[1770760521663,3.76500457,82.49,82.456,1.4567504]
[1770760522076,7.60491755,82.49,82.456,1.4567504]
[1770760522369,3.83991298,82.489,82.456,1.4567504]
[1770760522770,3.83991298,82.489,82.412,96.78]
[1770760522771,3.74778513,82.479,82.438,1.45759822]
[1770760523165,3.74778513,82.469,82.438,1.45759822]
[1770760523373,7.5127897,82.48,82.438,1.45759822]
[1770760523675,3.74778513,82.479,82.438,1.45759822]
[1770760524768,3.74778513,82.479,82.439,12.3497327]
[1770760525970,3.74778513,82.479,82.445,10.9223]
[1770760527275,3.74778513,82.479,82.451,10.9214]
[1770760527475,3.74778513,82.488,82.451,1.45154471]
[1770760528670,3.74778513,82.488,82.458,10.9206]
[1770760529572,3.76500457,82.48,82.451,1.45154471]
[1770760532379,3.74778513,82.488,82.451,1.45154471]
[1770760535274,3.76500457,82.48,82.451,1.45154471]
[1770760535481,3.74778513,82.479,82.441,10.9228]
[1770760541679,3.74778513,82.479,82.441,12.40981162]
[1770760542182,3.74778513,82.479,82.442,1.48701162]
[1770760544086,7.5127897,82.49,82.444,1.41264806]
[1770760544276,3.74778513,82.489,82.444,1.41264806]
[1770760545376,3.76500457,82.48,82.444,1.41264806]
[1770760545685,3.76500457,82.48,82.452,10.9213]
[1770760546484,11.1169491,82.508,82.422,119.50893379]
[1770760546485,3.74778513,82.499,82.455,1.41121558]
[1770760547785,3.74778513,82.499,82.461,10.9201]
[1770760548182,3.76500457,82.48,82.444,1.40431251]
[1770760548374,3.74778513,82.489,82.453,1.40431251]
[1770760549687,3.74778513,82.489,82.463,10.9199]
[1770760550788,8.83830779,82.498,82.463,10.9199]
[1770760551089,8.83830779,82.497,82.463,10.9199]
[1770760551791,12.68769248,82.497,82.463,10.9199]
[1770760551992,3.84938469,82.497,82.463,10.9199]
[1770760552482,12.72007215,82.497,82.463,10.9199]
[1770760552691,3.84938469,82.497,82.463,10.9199]
[1770760553091,12.72007215,82.497,82.463,10.9199]
[1770760553293,3.84938469,82.497,82.463,10.9199]
[1770760553790,12.72007215,82.497,82.468,10.9191]
[1770760553989,169.6163,82.585,82.469,1.48204767]
[1770760553990,7.61438926,82.51,82.469,1.48204767]
[1770760554294,3.84938469,82.509,82.469,1.48204767]
[1770760555695,3.84938469,82.509,82.473,10.9185]
[1770760556991,3.84938469,82.489,82.441,1.48658238]
[1770760558496,3.84938469,82.489,82.44,3.76500457]
[1770760558497,3.84938469,82.489,82.458,1.47821533]
[1770760558697,3.84938469,82.499,82.458,1.47821533]
[1770760560495,3.84938469,82.509,82.462,1.53135875]
[1770760561794,3.84938469,82.509,82.468,10.9192]
[1770760561992,7.61438926,82.48,82.43,3.76500457]
[1770760562203,3.84938469,82.459,82.412,1.51337242]
[1770760562401,7.61438926,82.45,82.412,1.51337242]
[1770760562602,3.84938469,82.449,82.412,1.51337242]
[1770760564099,3.84938469,82.483,82.426,1.22850955]
[1770760564294,21.8246,82.521,82.41,3.76500457]
[1770760564295,3.84938469,82.459,82.414,1.22850955]
[1770760564494,3.76500457,82.45,82.414,1.22850955]
[1770760564693,7.61438926,82.45,82.414,1.22850955]
[1770760564900,3.84938469,82.449,82.414,1.22850955]
[1770760565802,3.84938469,82.449,82.411,10.9268]
[1770760566013,7.61438926,82.44,82.4,1.20705154]
[1770760566204,3.84938469,82.449,82.4,1.20705154]
[1770760567703,3.84938469,82.449,82.411,10.9267]
[1770760568105,3.84938469,82.449,82.4,1.20705154]
[1770760568106,3.76500457,82.46,82.412,1.17740941]
[1770760568406,3.84938469,82.459,82.412,1.17740941]
[1770760569606,3.76500457,82.46,82.431,10.9241]
[1770760569910,3.76500457,82.47,82.431,10.9241]
[1770760570105,3.76500457,82.48,82.431,1.15797662]
[1770760570310,3.76500457,82.48,82.446,10.9221]
[1770760570511,3.76500457,82.48,82.442,1.15797662]
[1770760570813,3.76500457,82.49,82.442,1.15797662]
[1770760571412,3.84938469,82.493,82.46,10.9202]
[1770760573113,3.76500457,82.5,82.461,10.9202]
[1770760573813,3.84938469,82.499,82.461,10.9202]
[1770760574209,7.61438926,82.49,82.453,1.15797662]
[1770760574409,3.84938469,82.49,82.453,1.15797662]
[1770760575115,8.81989571,82.527,82.453,1.15797662]
[1770760575116,3.84938469,82.503,82.453,1.15797662]
[1770760575709,3.84938469,82.503,82.469,10.9191]
[1770760576913,3.84938469,82.528,82.49,10.9162]
[1770760577305,3.84938469,82.509,82.444,0.95186]
[1770760577611,3.76500457,82.49,82.461,10.9202]
[1770760578615,3.84938469,82.469,82.431,0.93743764]
[1770760578816,3.84938469,82.469,82.389,21.8593]
[1770760578817,3.84938469,82.469,82.411,0.93743764]
[1770760579520,3.76791878,82.46,82.411,0.93743764]
[1770760579721,3.76791878,82.46,82.43,10.9243]
[1770760580014,3.84938469,82.469,82.389,21.8593]
[1770760580015,3.84938469,82.469,82.423,0.66733397]
[1770760581819,3.84938469,82.469,82.437,10.9233]
[1770760583123,3.84938469,82.469,82.423,0.66733397]
[1770760583124,3.76791878,82.46,82.427,10.9246]
[1770760584719,3.84938469,82.469,82.427,10.9246]
[1770760584924,4.0223005,82.512,82.46,3.76791878]
[1770760585219,3.76791878,82.51,82.46,3.76791878]
[1770760585422,4.0223005,82.489,82.428,0.69895883]
[1770760585619,3.76791878,82.47,82.428,0.69895883]
[1770760585814,36.41,82.509,82.428,0.69895883]
[1770760585815,4.0223005,82.469,82.428,0.69895883]
[1770760586027,36.41,82.509,82.428,0.69895883]
[1770760586028,3.76791878,82.45,82.428,0.69895883]
[1770760586321,7.79021928,82.45,82.428,0.69895883]
[1770760587128,4.0223005,82.45,82.428,0.69895883]
[1770760587321,4.0223005,82.45,82.41,3.76791878]
[1770760587721,4.0223005,82.45,82.411,10.9268]
[1770760588315,8.81809334,82.487,82.427,10.9247]
[1770760588517,3.76791878,82.46,82.4,3.76791878]
[1770760588719,3.76791878,82.46,82.401,4.11548136]
[1770760589623,3.76791878,82.45,82.401,4.11548136]
[1770760590020,3.76791878,82.46,82.41,3.76791878]
[1770760590217,3.76791878,82.46,82.401,4.11548136]
[1770760590423,4.0223005,82.459,82.401,4.11548136]
[1770760590823,4.0223005,82.459,82.41,10.9268]
[1770760593230,3.76791878,82.45,82.41,10.9268]
[1770760597440,4.0223005,82.459,82.41,10.9268]
[1770760597642,3.76791878,82.45,82.41,10.9268]
[1770760598537,7.79021928,82.45,82.41,10.9268]
[1770760599345,4.0223005,82.45,82.41,10.9268]
[1770760599645,7.79021928,82.45,82.41,15.04228136]
[1770760600238,4.0223005,82.449,82.41,15.04228136]
[1770760602647,4.0223005,82.449,82.41,10.9268]
[1770760602843,4.0223005,82.449,82.397,4.11548136]
[1770760602844,4.0223005,82.439,82.401,10.9281]
[1770760603744,4.0223005,82.439,82.407,10.9273]
[1770760603948,3.76791878,82.44,82.397,4.11548136]
[1770760604138,4.0223005,82.449,82.397,4.11548136]
[1770760605546,4.0223005,82.449,82.401,4.04849064]
[1770760605742,4.0223005,82.449,82.415,10.9263]
[1770760606450,4.0223005,82.429,82.375,4.04849064]
[1770760606643,4.0223005,82.419,82.375,4.04849064]
[1770760607050,4.15036805,82.409,82.361,3.82866359]
[1770760607249,4.15036805,82.399,82.361,3.82866359]
[1770760608354,4.15036805,82.389,82.341,3.82866359]
[1770760608747,4.15036805,82.379,82.33,3.76791878]
[1770760608956,3.76791878,82.37,82.33,3.82866359]
[1770760609254,3.76791878,82.37,82.343,10.9358]
[1770760609455,4.15036805,82.379,82.343,10.9358]
[1770760610247,3.76791878,82.37,82.332,10.9372]
[1770760610448,7.52574644,82.37,82.332,10.9372]
[1770760610654,3.75782766,82.369,82.332,10.9372]
[1770760610855,3.76791878,82.35,82.322,10.9385]
[1770760611058,3.75782766,82.359,82.322,10.9385]
[1770760611654,3.75782766,82.349,82.313,10.9398]
[1770760611960,3.75782766,82.349,82.301,3.94570714]
[1770760611961,3.76791878,82.34,82.301,3.94570714]
[1770760612151,3.75782766,82.339,82.295,10.9421]
[1770760612453,3.76791878,82.33,82.288,3.94570714]
[1770760613458,3.76791878,82.36,82.301,3.94570714]
[1770760613658,7.52574644,82.36,82.301,3.94570714]
[1770760613953,3.76791878,82.35,82.301,3.94570714]
[1770760614753,3.76791878,82.35,82.306,3.94570714]
[1770760615454,3.77841371,82.35,82.306,3.94570714]
[1770760615657,3.75782766,82.359,82.311,10.9401]
[1770760616059,3.77841371,82.35,82.311,10.9401]
[1770760616457,3.75782766,82.339,82.299,10.9416]
[1770760617757,3.77841371,82.33,82.299,10.9416]
[1770760618557,3.75782766,82.357,82.308,3.94570714]
[1770760618763,3.77841371,82.36,82.311,3.94570714]
[1770760619769,3.77841371,82.36,82.323,10.9384]
[1770760620365,3.75782766,82.372,82.266,170.2726]
[1770760620366,3.77841371,82.37,82.324,3.94570714]
[1770760621868,3.77841371,82.37,82.335,10.9368]
[1770760623167,96.9,82.4,82.335,10.9368]
[1770760623168,3.77841371,82.38,82.343,10.9358]
[1770760623564,3.75782766,82.384,82.335,3.94570714]
[1770760623965,3.75782766,82.384,82.296,96.9]
[1770760623966,3.75782766,82.384,82.341,3.94570714]
[1770760624667,3.77841371,82.39,82.351,10.9347]
[1770760625259,3.75782766,82.369,82.313,3.94570714]
[1770760625464,3.77841371,82.36,82.313,3.94570714]
[1770760626668,3.75782766,82.369,82.313,3.94570714]
[1770760626871,3.75782766,82.369,82.334,10.937]
[1770760630670,3.75782766,82.388,82.346,3.94570714]
[1770760630873,3.75782766,82.402,82.346,3.94570714]
[1770760631876,3.75782766,82.402,82.356,10.9341]
[1770760634772,3.75782766,82.399,82.356,10.9341]
[1770760634968,3.75782766,82.399,82.348,10.9352]
[1770760635681,3.75782766,82.395,82.348,10.9352]
[1770760636669,3.75782766,82.392,82.348,10.9352]
[1770760637882,3.75782766,82.39,82.349,3.94570714]
[1770760639479,14.68772766,82.389,82.349,3.94570714]
[1770760640683,4.05358303,82.388,82.349,3.94570714]
[1770760641878,4.05358303,82.388,82.353,10.9344]
[1770760643083,4.05358303,82.388,82.349,3.94570714]
[1770760643084,10.9301,82.387,82.349,3.94570714]
[1770760643577,15.05643902,82.387,82.349,3.94570714]
[1770760644573,4.12633902,82.387,82.354,10.9343]
[1770760644882,4.12633902,82.399,82.349,3.94570714]
[1770760645789,4.12633902,82.399,82.364,10.933]
[1770760646886,3.77433784,82.39,82.364,10.933]
[1770760649087,4.12633902,82.399,82.374,10.9317]
[1770760650382,4.12633902,82.399,82.311,22.72893379]
[1770760650383,4.12633902,82.425,82.37,3.84287196]
[1770760650582,7.90067686,82.42,82.371,3.84287196]
[1770760650890,4.12633902,82.389,82.341,3.84287196]
[1770760651081,4.12633902,82.389,82.357,10.9339]
[1770760651791,3.77433784,82.38,82.357,10.9339]
[1770760654395,3.77433784,82.37,82.348,10.9351]
[1770760654690,3.77433784,82.36,82.302,3.84287196]
[1770760654992,3.77433784,82.36,82.311,3.84287196]
[1770760655793,3.77433784,82.36,82.324,10.9383]
[1770760656193,3.77433784,82.36,82.324,14.78117196]
[1770760658198,3.77433784,82.36,82.325,3.84287196]
[1770760660089,3.77433784,82.35,82.325,3.84287196]
[1770760660792,3.77433784,82.36,82.327,3.84287196]
[1770760660993,3.77433784,82.37,82.327,3.84287196]
[1770760661800,3.77433784,82.37,82.335,3.84287196]
[1770760662996,10.931,82.38,82.301,21.8827]
[1770760662997,4.12633902,82.393,82.346,3.84287196]
[1770760663297,3.77433784,82.39,82.346,3.84287196]
[1770760663798,3.77433784,82.38,82.346,3.84287196]
[1770760664697,3.77433784,82.37,82.345,10.9356]
[1770760666496,3.77433784,82.38,82.345,10.9356]
[1770760670389,3.77433784,82.38,82.349,10.9349]
[1770760670594,3.77433784,82.38,82.35,3.94741845]
[1770760670791,3.77433784,82.38,82.331,3.94741845]
[1770760671696,3.77433784,82.38,82.344,10.9356]
[1770760672902,3.77433784,82.38,82.347,10.9352]
[1770760673304,3.77433784,82.38,82.348,3.94741845]
[1770760674306,3.77433784,82.38,82.351,14.88221845]
[1770760680308,10.9311,82.379,82.351,3.94741845]
[1770760680613,3.77433784,82.38,82.351,3.94741845]
[1770760682009,4.12633902,82.389,82.351,3.94741845]
[1770760682307,4.12633902,82.389,82.34,3.77433784]
[1770760682308,3.77433784,82.36,82.329,3.94741845]
[1770760682612,3.77433784,82.38,82.329,3.94741845]
[1770760682806,3.77433784,82.38,82.347,3.94741845]
[1770760683713,3.77433784,82.38,82.35,3.94741845]
[1770760684812,3.77433784,82.39,82.356,14.88151845]
[1770760686214,3.89696017,82.394,82.356,14.88151845]
[1770760686215,3.77433784,82.38,82.356,14.88151845]
[1770760689612,3.89696017,82.389,82.356,14.88151845]
[1770760695118,3.89696017,82.389,82.357,3.94741845]
[1770760697921,3.77433784,82.39,82.357,3.94741845]
[1770760698122,3.89696017,82.401,82.34,3.77433784]
[1770760698123,3.77433784,82.4,82.36,3.94741845]
[1770760698324,10.9284,82.399,82.36,3.94741845]
[1770760698630,3.77433784,82.37,82.333,3.94741845]
[1770760699720,3.77433784,82.37,82.341,10.9361]
[1770760700117,3.77433784,82.37,82.342,3.81595168]
[1770760700317,3.89696017,82.379,82.347,3.81595168]
[1770760702217,3.77433784,82.38,82.349,3.81595168]
[1770760702617,10.9298,82.389,82.349,3.81595168]
[1770760703816,10.9298,82.389,82.33,3.77498757]
[1770760703817,10.9298,82.389,82.351,3.86890107]
[1770760704022,3.93386331,82.389,82.351,3.86890107]
[1770760704219,3.77498757,82.4,82.351,3.86890107]
[1770760704522,3.77498757,82.4,82.362,3.86890107]
[1770760705819,10.9284,82.399,82.362,3.86890107]
[1770760706416,3.77498757,82.4,82.369,3.86890107]
[1770760706623,3.77498757,82.4,82.332,21.8745]
[1770760706624,3.93386331,82.413,82.371,3.86890107]
[1770760706925,3.77498757,82.42,82.371,3.86890107]
[1770760707322,8.7754849,82.437,82.391,3.86890107]
[1770760707521,3.93386331,82.438,82.391,3.86890107]
[1770760707721,7.70885088,82.42,82.379,3.86890107]
[1770760707921,7.70885088,82.42,82.386,10.9301]
[1770760712330,3.93386331,82.42,82.386,10.9301]
[1770760714225,3.93386331,82.42,82.359,96.9]
[1770760714226,3.93386331,82.429,82.391,3.86890107]
[1770760714424,3.93386331,82.429,82.381,3.86890107]
[1770760715728,3.93386331,82.429,82.386,10.9301]
[1770760717226,3.93386331,82.419,82.386,10.9301]
[1770760718530,10.9246,82.428,82.37,3.77498757]
[1770760718531,10.9246,82.428,82.391,10.9295]
[1770760719130,3.93386331,82.427,82.391,10.9295]
[1770760721427,3.77498757,82.42,82.391,10.9295]
[1770760724432,3.93386331,82.427,82.391,10.9295]
[1770760726432,3.93386331,82.419,82.384,10.9303]
[1770760726630,3.93386331,82.419,82.377,3.86890107]
[1770760727534,3.77498757,82.42,82.377,3.86890107]
[1770760727734,3.77498757,82.42,82.39,10.9296]
[1770760730634,10.9218,82.45,82.412,10.9267]
[1770760730836,3.90216549,82.439,82.398,3.77555586]
[1770760731739,10.9234,82.438,82.401,3.77555586]
[1770760731937,7.67715306,82.45,82.401,3.77555586]
[1770760732738,7.67715306,82.45,82.409,3.77555586]
[1770760732739,10.9219,82.449,82.409,3.77555586]
[1770760733437,10.9219,82.449,82.413,3.77555586]
[1770760734831,3.76917823,82.44,82.404,14.70325586]
[1770760735037,3.76917823,82.44,82.405,3.77555586]
[1770760736742,3.76917823,82.44,82.408,3.77555586]
[1770760738041,3.90216549,82.439,82.401,10.9281]
[1770760738540,3.90216549,82.439,82.406,10.9274]
[1770760739541,3.90216549,82.439,82.406,14.70295586]
[1770760739843,3.90216549,82.439,82.408,10.9271]
[1770760747550,10.9223,82.445,82.409,3.77555586]
[1770760747849,10.9223,82.445,82.411,3.77555586]
[1770760752352,3.90216549,82.45,82.417,10.9259]
[1770760752653,3.90216549,82.45,82.417,14.70145586]
[1770760753055,3.90216549,82.45,82.418,3.77555586]
[1770760756860,3.90216549,82.45,82.42,3.77555586]
[1770760758155,3.90216549,82.449,82.408,3.77555586]
[1770760759755,10.9225,82.444,82.408,14.70275586]
[1770760759959,14.82466549,82.444,82.409,4.04737852]
[1770760765657,4.13495669,82.439,82.402,10.928]
[1770760765862,36.41,82.469,82.311,223.00244116]
[1770760765863,4.13495669,82.429,82.381,4.09124146]
[1770760766866,4.13495669,82.426,82.389,10.9297]
[1770760767164,3.76923914,82.42,82.389,10.9297]
[1770760769460,8.80043428,82.444,82.397,4.09124146]
[1770760769663,4.13495669,82.446,82.401,4.09124146]
[1770760770360,4.13495669,82.443,82.406,10.9275]
[1770760771165,4.13495669,82.443,82.407,4.09124146]
[1770760771366,3.76923914,82.44,82.407,4.09124146]
[1770760775364,4.13495669,82.439,82.407,4.09124146]
[1770760776369,4.13495669,82.439,82.408,10.9272]
[1770760776871,4.13495669,82.439,82.391,4.09124146]
[1770760777174,4.13495669,82.439,82.406,10.9274]
[1770760778270,3.76923914,82.43,82.406,10.9274]
[1770760785580,4.13495669,82.439,82.406,10.9274]
[1770760787279,4.13495669,82.439,82.412,10.9266]
[1770760789077,3.76923914,82.44,82.412,15.01784146]
[1770760789282,4.13495669,82.447,82.412,15.01784146]
[1770760789476,3.76923914,82.45,82.419,4.09124146]
[1770760789681,10.9209,82.456,82.419,4.09124146]